{"text_format":"1","workbook":"xlsx","n_sheets":6,"sheets":["Year 1","Year 2","Year 3","Year 4","Year 5","5 Year Total"],"not_rendered":{"charts":0,"images":0,"macros":0,"external_links":0,"defined_names":6,"comments":0,"pivot_tables":0},"unopened":[],"bounds":{"document_bytes":16777216,"sheet_cells":100000,"rows_first":2000,"rows_last":500,"rows_between":2000,"halvings":0,"cell_chars":16384,"cell_head_chars":4096},"cells_cut":0,"cells_raw":0,"read":"whole","date_system":"1900"}

{"sheet":"Year 1","index":0,"n_rows":24,"n_cols":20,"rows_kept":24,"cut":false,"hidden":false,"merged":[[25,0,25,19],[22,0,22,2],[22,3,22,6],[22,7,22,8],[22,10,22,11],[22,13,22,14],[22,16,22,17],[23,0,23,2],[23,3,23,6],[23,7,23,8],[23,9,23,19],[24,0,24,19],[21,17,21,19],[15,1,15,19],[16,1,16,19],[17,1,17,19],[18,1,18,19],[19,1,19,19],[20,0,20,19],[21,0,21,2],[21,3,21,6],[21,7,21,9],[21,10,21,14],[21,15,21,16],[14,1,14,19],[0,0,0,19],[1,0,1,19],[11,0,11,18],[12,0,12,19],[13,0,13,19]]}
["ATTACHMENT 4\nBID SCHEDULE"]
["YEAR 1"]
["Item","Site","Location","Container Size","Qty","Scheduled Pick Up Frequency","Monthly Rental                                        Cost per Container and Security Bar (Note B)                                ","Nunber of Months Container Rented Per Year ","Total Yearly Rental Cost (Sum of Column G x H)","Price Per Pick Up                           per Container (Note A)","Estimated Number of Pick Ups Per Year","Total Yearly Cost for Pick Ups (Sum of Columns J x K)","Approximate Date In (Note C)","Container Delivery Fee (Note D)","Approximate Date Out (Note C)","Container Removal Fee (Note E)","Price Per Extra Pick Up\n(Cost Per Pick Up) (Note F)","Approximate Extra Pick Up Dates","Total Cost for 2 Extra Pick Ups per year (Sum Column Q x 2)","Total Cost per Year (Sum of Columns I +  L +  N +  P + S)"]
["1.","Kesugi Ken Ranger Station","Mile 135.4 Parks Highway, Trapper Creek","3 YD With Security Bar",1,"October 1 - March 31: 1 x Monthly    \nApril 1 - May 20:    1 x Weekly \nMay 21 - September 5: 2 x Weekly \nSeptember 6 - September 30: 1 x Weekly  ","State Owned Dumpster",12,"N/A for this line",0,"48",{"$f":"SUM(J4*K4)","v":0},"Year Round","Container on Site","Year Round","Container on Site",0,"Memorial Day \nJuly 4th ",{"$f":"SUM(Q4*2)","v":0},{"$f":"SUM(L4,S4)","v":0}]
["2.","Kesugi Ken Large Parking Pad","Mile 135.4 Parks Highway, Trapper Creek","3 YD With Security Bar",1,"May 21 - September 5:  2 x Weekly\nSeptember 6 - September 30:  1 x Weekly",0,"5",{"$f":"SUM(G5*H5)","v":0},0,"35",0,"2024-05-21",0,"2024-09-30",0,0,"Memorial Day \nJuly 4th ",{"$f":"SUM(Q5*2)","v":0},{"$f":"SUM(I5+L5+N5+P5+S5)","v":0}]
["3.","Kesugi Ken Tent Pad","Mile 135.4 Parks Highway, Trapper Creek","3 YD With Security Bar",1,"May 21 - September 5:  2 x Weekly\nSeptember 6 - September 30:  1 x Weekly",0,"5",{"$f":"SUM(G6*H6)","v":0},0,"35",0,"2024-05-21",0,"2024-09-30",0,0,"Memorial Day \nJuly 4th ",{"$f":"SUM(Q6*2)","v":0},{"$f":"SUM(I6+L6+N6+P6+S6)","v":0}]
["4.","Byers Lake Campground, Day Lot","Mile 147 Parks Highway, Trapper Creek","3 YD With Security Bar",1,"May 21 - September 5:  2 x Weekly\nSeptember 6 - September 30:  1 x Weekly",0,"5",{"$f":"SUM(G7*H7)","v":0},0,"35",0,"2024-05-21",0,"2024-09-30",0,0,"Memorial Day \nJuly 4th ",{"$f":"SUM(Q7*2)","v":0},0]
["5.","Byers Lake Campground, Fee Station","Mile 147 Parks Highway, Trapper Creek","3 YD With Security Bar",1,"May 21 - September 5:  2 x Weekly ",0,"5",{"$f":"SUM(G8*H8)","v":0},0,"32",0,"2024-05-21",0,"2024-09-05",0,0,"Memorial Day \nJuly 4th ",{"$f":"SUM(Q8*2)","v":0},0]
["6.","Byers Lake Campground, Host Site","Mile 147 Parks Highway, Trapper Creek","3 YD With Security Bar",1,"May 21 - September 5:  2 x Weekly\nSeptember 6 - September 30:  1 x Weekly",0,"5",0,0,"35",0,"2024-05-21",0,"2024-09-30",0,0,"Memorial Day \nJuly 4th ",{"$f":"SUM(Q9*2)","v":0},0]
["7.","Alaska Veterans Memorial","Mile 147.1 Parks Highway, Trapper Creek","3 YD With Security Bar",1,"May 21 - September 5:  2 x Weekly ",0,"5",0,0,"32",0,"2024-05-21",0,"2024-09-05",0,0,"Memorial Day \nJuly 4th ",0,0]
["8.","Denali View South Viewpoint (possible new dumpster, yet to be determined.)","Mile 134.8 Parks Highway, Trapper Creek","3 YD With Security Bar",1,"May 21 - September 5:  2 x Weekly ",0,"5",0,0,"32",0,"2024-05-21",0,"2024-09-05",0,0,"Memorial Day \nJuly 4th ",0,0]
["TOTAL COST PER YEAR",null,null,null,null,null,null,null,null,null,null,null,null,null,null,null,null,null,null,{"$f":"SUM(T4:T11)","v":0}]
["Prices do not reflect the Fuel Surcharge, Disposal Surcharge and RCC Fee.  Each Fee to be billed as separate line items on invoice.         "]
["DETAILS FOR BID SCHEDULE "]
["A.","The \"Price Per Pick Up per Container\" column is the cost per pick up of that container. "]
["B.","The \"Monthly Rental Cost Per Container and Security Bar\" column is the cost per per month for the rental of the container and security bar. "]
["C.","The \"Approximate Date In\" and Approximated Date Out\" colums ar the approximate dates containters are to be delivered to and removed from the location shown. These dates may vary from year to year. Mat-Su Parks will notify the Contractor of the delivery in and out dates for subsequent contract years."]
["D.","The \"Containter Delivery Fee\" column is the cost for one time delivery of a container to the site for Year Round service for Seasonal service. Bidder is to enter the cost per service per containter in this column. So for Year Round service, the State would pay only one fee, for Seasonal delivery  the State would pay the fee offered when the container is delivered at the beginning of the season."]
["E.","The \"Containter Removal Fee\" column is the cost for one time removal of a container from the site for Year Round service for Seasonal service. Bidder is to enter the cost per service per containter in this column. So for Year Round service, the State would pay only one fee, for Seasonal removal the State would pay the fee offered when the container is removed at the end of the season."]
["F.","The \"Price Per Extra Pick Up\" column is the cost per service to provide an additional pick up on the date(s) shown in the \"Approximate Extra Pick Up Dates\" column. The \"Approximate Extra  Pick Up Dates\" may vary from year to year. The Contractor will be notified by Mat-Su Parks when a special service is required."]
["BIDDER INFORMATION"]
["Authorized Person's Printed Name:",null,null,null,null,null,null,"Authorized Person's Signature:\nWill Fill Automatically from Authorized Person's Name",null,null,{"$f":"IF(D22=\"\",\"\",D22)","v":""},null,null,null,null,"Date Signed:"]
["Preference Certification:",null,null,"Check the preference(s) your company qualifies for:",null,null,null,"Alaska Bidder:",null,null,"Alaska Veteran:",null,null,"Alaskan with Disabilities:",null,null,"Employment Program:"]
["Addendum Certification:",null,null,"I acknowledge receipt of the following addendum(s) issued for this ITB:"]

{"sheet":"Year 2","index":1,"n_rows":24,"n_cols":20,"rows_kept":24,"cut":false,"hidden":false,"merged":[[25,0,25,19],[22,0,22,2],[22,3,22,6],[22,7,22,8],[22,10,22,11],[22,13,22,14],[22,16,22,17],[23,0,23,2],[23,3,23,6],[23,7,23,8],[23,9,23,19],[24,0,24,19],[21,17,21,19],[15,1,15,19],[16,1,16,19],[17,1,17,19],[18,1,18,19],[19,1,19,19],[20,0,20,19],[21,0,21,2],[21,3,21,6],[21,7,21,9],[21,10,21,14],[21,15,21,16],[14,1,14,19],[0,0,0,19],[1,0,1,19],[11,0,11,18],[12,0,12,19],[13,0,13,19]]}
["ATTACHMENT 4\nBID SCHEDULE"]
["YEAR 2"]
["Item","Site","Location","Container Size","Qty","Scheduled Pick Up Frequency","Monthly Rental                                        Cost per Container and Security Bar (Note B)                                ","Nunber of Months Container Rented Per Year ","Total Yearly Rental Cost (Sum of Column G x H)","Price Per Pick Up                           per Container (Note A)","Estimated Number of Pick Ups Per Year","Total Yearly Cost for Pick Ups (Sum of Columns J x K)","Approximate Date In (Note C)","Container Delivery Fee (Note D)","Approximate Date Out (Note C)","Container Removal Fee (Note E)","Price Per Extra Pick Up\n(Cost Per Pick Up) (Note F)","Approximate Extra Pick Up Dates","Total Cost for 2 Extra Pick Ups per year (Sum Column Q x 2)","Total Cost per Year (Sum of Columns I +  L +  N +  P + S)"]
["1.","Kesugi Ken Ranger Station","Mile 135.4 Parks Highway, Trapper Creek","3 YD With Security Bar",1,"October 1 - March 31: 1 x Monthly    \nApril 1 - May 20:    1 x Weekly \nMay 21 - September 5: 2 x Weekly \nSeptember 6 - September 30: 1 x Weekly  ","State Owned Dumpster",12,"N/A for this line",0,"48",{"$f":"SUM(J4*K4)","v":0},"Year Round","Container on Site","Year Round","Container on Site",0,"Memorial Day \nJuly 4th ",{"$f":"SUM(Q4*2)","v":0},{"$f":"SUM(L4,S4)","v":0}]
["2.","Kesugi Ken Large Parking Pad","Mile 135.4 Parks Highway, Trapper Creek","3 YD With Security Bar",1,"May 21 - September 5:  2 x Weekly\nSeptember 6 - September 30:  1 x Weekly",0,"5",{"$f":"SUM(G5*H5)","v":0},0,"35",0,"2024-05-21",0,"2024-09-30",0,0,"Memorial Day \nJuly 4th ",{"$f":"SUM(Q5*2)","v":0},{"$f":"SUM(I5+L5+N5+P5+S5)","v":0}]
["3.","Kesugi Ken Tent Pad","Mile 135.4 Parks Highway, Trapper Creek","3 YD With Security Bar",1,"May 21 - September 5:  2 x Weekly\nSeptember 6 - September 30:  1 x Weekly",0,"5",{"$f":"SUM(G6*H6)","v":0},0,"35",0,"2024-05-21",0,"2024-09-30",0,0,"Memorial Day \nJuly 4th ",{"$f":"SUM(Q6*2)","v":0},{"$f":"SUM(I6+L6+N6+P6+S6)","v":0}]
["4.","Byers Lake Campground, Day Lot","Mile 147 Parks Highway, Trapper Creek","3 YD With Security Bar",1,"May 21 - September 5:  2 x Weekly\nSeptember 6 - September 30:  1 x Weekly",0,"5",{"$f":"SUM(G7*H7)","v":0},0,"35",0,"2024-05-21",0,"2024-09-30",0,0,"Memorial Day \nJuly 4th ",{"$f":"SUM(Q7*2)","v":0},0]
["5.","Byers Lake Campground, Fee Station","Mile 147 Parks Highway, Trapper Creek","3 YD With Security Bar",1,"May 21 - September 5:  2 x Weekly ",0,"5",{"$f":"SUM(G8*H8)","v":0},0,"32",0,"2024-05-21",0,"2024-09-05",0,0,"Memorial Day \nJuly 4th ",{"$f":"SUM(Q8*2)","v":0},0]
["6.","Byers Lake Campground, Host Site","Mile 147 Parks Highway, Trapper Creek","3 YD With Security Bar",1,"May 21 - September 5:  2 x Weekly\nSeptember 6 - September 30:  1 x Weekly",0,"5",0,0,"35",0,"2024-05-21",0,"2024-09-30",0,0,"Memorial Day \nJuly 4th ",{"$f":"SUM(Q9*2)","v":0},0]
["7.","Alaska Veterans Memorial","Mile 147.1 Parks Highway, Trapper Creek","3 YD With Security Bar",1,"May 21 - September 5:  2 x Weekly ",0,"5",0,0,"32",0,"2024-05-21",0,"2024-09-05",0,0,"Memorial Day \nJuly 4th ",0,0]
["8.","Denali View South Viewpoint (possible new dumpster, yet to be determined.)","Mile 134.8 Parks Highway, Trapper Creek","3 YD With Security Bar",1,"May 21 - September 5:  2 x Weekly ",0,"5",0,0,"32",0,"2024-05-21",0,"2024-09-05",0,0,"Memorial Day \nJuly 4th ",0,0]
["TOTAL COST PER YEAR",null,null,null,null,null,null,null,null,null,null,null,null,null,null,null,null,null,null,{"$f":"SUM(T4:T11)","v":0}]
["Prices do not reflect the Fuel Surcharge, Disposal Surcharge and RCC Fee.  Each Fee to be billed as separate line items on invoice.         "]
["DETAILS FOR BID SCHEDULE "]
["A.","The \"Price Per Pick Up per Container\" column is the cost per pick up of that container. "]
["B.","The \"Monthly Rental Cost Per Container and Security Bar\" column is the cost per per month for the rental of the container and security bar. "]
["C.","The \"Approximate Date In\" and Approximated Date Out\" colums ar the approximate dates containters are to be delivered to and removed from the location shown. These dates may vary from year to year. Mat-Su Parks will notify the Contractor of the delivery in and out dates for subsequent contract years."]
["D.","The \"Containter Delivery Fee\" column is the cost for one time delivery of a container to the site for Year Round service for Seasonal service. Bidder is to enter the cost per service per containter in this column. So for Year Round service, the State would pay only one fee, for Seasonal delivery  the State would pay the fee offered when the container is delivered at the beginning of the season."]
["E.","The \"Containter Removal Fee\" column is the cost for one time removal of a container from the site for Year Round service for Seasonal service. Bidder is to enter the cost per service per containter in this column. So for Year Round service, the State would pay only one fee, for Seasonal removal the State would pay the fee offered when the container is removed at the end of the season."]
["F.","The \"Price Per Extra Pick Up\" column is the cost per service to provide an additional pick up on the date(s) shown in the \"Approximate Extra Pick Up Dates\" column. The \"Approximate Extra  Pick Up Dates\" may vary from year to year. The Contractor will be notified by Mat-Su Parks when a special service is required."]
["BIDDER INFORMATION"]
["Authorized Person's Printed Name:",null,null,{"$f":"IF('Year 1'!$D$22=\"\",\"\",'Year 1'!$D$22)","v":""},null,null,null,"Authorized Person's Signature:\nWill Fill Automatically from Authorized Person's Name",null,null,{"$f":"IF(D22=\"\",\"\",D22)","v":""},null,null,null,null,"Date Signed:",null,{"$f":"IF('Year 1'!$R$22=\"\",\"\",'Year 1'!$R$22)","v":""}]
["Preference Certification:",null,null,"Check the preference(s) your company qualifies for:",null,null,null,"Alaska Bidder:",null,{"$f":"IF('Year 1'!$J$23=\"\",\"\",'Year 1'!$J$23)","v":""},"Alaska Veteran:",null,{"$f":"IF('Year 1'!$M$23=\"\",\"\",'Year 1'!$M$23)","v":""},"Alaskan with Disabilities:",null,{"$f":"IF('Year 1'!$P$23=\"\",\"\",'Year 1'!$P$23)","v":""},"Employment Program:",null,{"$f":"IF('Year 1'!$S$23=\"\",\"\",'Year 1'!$S$23)","v":""}]
["Addendum Certification:",null,null,"I acknowledge receipt of the following addendum(s) issued for this ITB:",null,null,null,{"$f":"IF('Year 1'!$H$24=\"\",\"\",'Year 1'!$H$24)","v":""}]

{"sheet":"Year 3","index":2,"n_rows":24,"n_cols":20,"rows_kept":24,"cut":false,"hidden":false,"merged":[[25,0,25,19],[22,0,22,2],[22,3,22,6],[22,7,22,8],[22,10,22,11],[22,13,22,14],[22,16,22,17],[23,0,23,2],[23,3,23,6],[23,7,23,8],[23,9,23,19],[24,0,24,19],[21,17,21,19],[15,1,15,19],[16,1,16,19],[17,1,17,19],[18,1,18,19],[19,1,19,19],[20,0,20,19],[21,0,21,2],[21,3,21,6],[21,7,21,9],[21,10,21,14],[21,15,21,16],[14,1,14,19],[0,0,0,19],[1,0,1,19],[11,0,11,18],[12,0,12,19],[13,0,13,19]]}
["ATTACHMENT 4\nBID SCHEDULE"]
["YEAR 3"]
["Item","Site","Location","Container Size","Qty","Scheduled Pick Up Frequency","Monthly Rental                                        Cost per Container and Security Bar (Note B)                                ","Nunber of Months Container Rented Per Year ","Total Yearly Rental Cost (Sum of Column G x H)","Price Per Pick Up                           per Container (Note A)","Estimated Number of Pick Ups Per Year","Total Yearly Cost for Pick Ups (Sum of Columns J x K)","Approximate Date In (Note C)","Container Delivery Fee (Note D)","Approximate Date Out (Note C)","Container Removal Fee (Note E)","Price Per Extra Pick Up\n(Cost Per Pick Up) (Note F)","Approximate Extra Pick Up Dates","Total Cost for 2 Extra Pick Ups per year (Sum Column Q x 2)","Total Cost per Year (Sum of Columns I +  L +  N +  P + S)"]
["1.","Kesugi Ken Ranger Station","Mile 135.4 Parks Highway, Trapper Creek","3 YD With Security Bar",1,"October 1 - March 31: 1 x Monthly    \nApril 1 - May 20:    1 x Weekly \nMay 21 - September 5: 2 x Weekly \nSeptember 6 - September 30: 1 x Weekly  ","State Owned Dumpster",12,"N/A for this line",0,"48",{"$f":"SUM(J4*K4)","v":0},"Year Round","Container on Site","Year Round","Container on Site",0,"Memorial Day \nJuly 4th ",{"$f":"SUM(Q4*2)","v":0},{"$f":"SUM(L4,S4)","v":0}]
["2.","Kesugi Ken Large Parking Pad","Mile 135.4 Parks Highway, Trapper Creek","3 YD With Security Bar",1,"May 21 - September 5:  2 x Weekly\nSeptember 6 - September 30:  1 x Weekly",0,"5",{"$f":"SUM(G5*H5)","v":0},0,"35",0,"2024-05-21",0,"2024-09-30",0,0,"Memorial Day \nJuly 4th ",{"$f":"SUM(Q5*2)","v":0},{"$f":"SUM(I5+L5+N5+P5+S5)","v":0}]
["3.","Kesugi Ken Tent Pad","Mile 135.4 Parks Highway, Trapper Creek","3 YD With Security Bar",1,"May 21 - September 5:  2 x Weekly\nSeptember 6 - September 30:  1 x Weekly",0,"5",{"$f":"SUM(G6*H6)","v":0},0,"35",0,"2024-05-21",0,"2024-09-30",0,0,"Memorial Day \nJuly 4th ",{"$f":"SUM(Q6*2)","v":0},{"$f":"SUM(I6+L6+N6+P6+S6)","v":0}]
["4.","Byers Lake Campground, Day Lot","Mile 147 Parks Highway, Trapper Creek","3 YD With Security Bar",1,"May 21 - September 5:  2 x Weekly\nSeptember 6 - September 30:  1 x Weekly",0,"5",{"$f":"SUM(G7*H7)","v":0},0,"35",0,"2024-05-21",0,"2024-09-30",0,0,"Memorial Day \nJuly 4th ",{"$f":"SUM(Q7*2)","v":0},0]
["5.","Byers Lake Campground, Fee Station","Mile 147 Parks Highway, Trapper Creek","3 YD With Security Bar",1,"May 21 - September 5:  2 x Weekly ",0,"5",{"$f":"SUM(G8*H8)","v":0},0,"32",0,"2024-05-21",0,"2024-09-05",0,0,"Memorial Day \nJuly 4th ",{"$f":"SUM(Q8*2)","v":0},0]
["6.","Byers Lake Campground, Host Site","Mile 147 Parks Highway, Trapper Creek","3 YD With Security Bar",1,"May 21 - September 5:  2 x Weekly\nSeptember 6 - September 30:  1 x Weekly",0,"5",0,0,"35",0,"2024-05-21",0,"2024-09-30",0,0,"Memorial Day \nJuly 4th ",{"$f":"SUM(Q9*2)","v":0},0]
["7.","Alaska Veterans Memorial","Mile 147.1 Parks Highway, Trapper Creek","3 YD With Security Bar",1,"May 21 - September 5:  2 x Weekly ",0,"5",0,0,"32",0,"2024-05-21",0,"2024-09-05",0,0,"Memorial Day \nJuly 4th ",0,0]
["8.","Denali View South Viewpoint (possible new dumpster, yet to be determined.)","Mile 134.8 Parks Highway, Trapper Creek","3 YD With Security Bar",1,"May 21 - September 5:  2 x Weekly ",0,"5",0,0,"32",0,"2024-05-21",0,"2024-09-05",0,0,"Memorial Day \nJuly 4th ",0,0]
["TOTAL COST PER YEAR",null,null,null,null,null,null,null,null,null,null,null,null,null,null,null,null,null,null,{"$f":"SUM(T4:T11)","v":0}]
["Prices do not reflect the Fuel Surcharge, Disposal Surcharge and RCC Fee.  Each Fee to be billed as separate line items on invoice.         "]
["DETAILS FOR BID SCHEDULE "]
["A.","The \"Price Per Pick Up per Container\" column is the cost per pick up of that container. "]
["B.","The \"Monthly Rental Cost Per Container and Security Bar\" column is the cost per per month for the rental of the container and security bar. "]
["C.","The \"Approximate Date In\" and Approximated Date Out\" colums ar the approximate dates containters are to be delivered to and removed from the location shown. These dates may vary from year to year. Mat-Su Parks will notify the Contractor of the delivery in and out dates for subsequent contract years."]
["D.","The \"Containter Delivery Fee\" column is the cost for one time delivery of a container to the site for Year Round service for Seasonal service. Bidder is to enter the cost per service per containter in this column. So for Year Round service, the State would pay only one fee, for Seasonal delivery  the State would pay the fee offered when the container is delivered at the beginning of the season."]
["E.","The \"Containter Removal Fee\" column is the cost for one time removal of a container from the site for Year Round service for Seasonal service. Bidder is to enter the cost per service per containter in this column. So for Year Round service, the State would pay only one fee, for Seasonal removal the State would pay the fee offered when the container is removed at the end of the season."]
["F.","The \"Price Per Extra Pick Up\" column is the cost per service to provide an additional pick up on the date(s) shown in the \"Approximate Extra Pick Up Dates\" column. The \"Approximate Extra  Pick Up Dates\" may vary from year to year. The Contractor will be notified by Mat-Su Parks when a special service is required."]
["BIDDER INFORMATION"]
["Authorized Person's Printed Name:",null,null,{"$f":"IF('Year 1'!$D$22=\"\",\"\",'Year 1'!$D$22)","v":""},null,null,null,"Authorized Person's Signature:\nWill Fill Automatically from Authorized Person's Name",null,null,{"$f":"IF(D22=\"\",\"\",D22)","v":""},null,null,null,null,"Date Signed:",null,{"$f":"IF('Year 1'!$R$22=\"\",\"\",'Year 1'!$R$22)","v":""}]
["Preference Certification:",null,null,"Check the preference(s) your company qualifies for:",null,null,null,"Alaska Bidder:",null,{"$f":"IF('Year 1'!$J$23=\"\",\"\",'Year 1'!$J$23)","v":""},"Alaska Veteran:",null,{"$f":"IF('Year 1'!$M$23=\"\",\"\",'Year 1'!$M$23)","v":""},"Alaskan with Disabilities:",null,{"$f":"IF('Year 1'!$P$23=\"\",\"\",'Year 1'!$P$23)","v":""},"Employment Program:",null,{"$f":"IF('Year 1'!$S$23=\"\",\"\",'Year 1'!$S$23)","v":""}]
["Addendum Certification:",null,null,"I acknowledge receipt of the following addendum(s) issued for this ITB:",null,null,null,{"$f":"IF('Year 1'!$H$24=\"\",\"\",'Year 1'!$H$24)","v":""}]

{"sheet":"Year 4","index":3,"n_rows":24,"n_cols":20,"rows_kept":24,"cut":false,"hidden":false,"merged":[[25,0,25,19],[22,0,22,2],[22,3,22,6],[22,7,22,8],[22,10,22,11],[22,13,22,14],[22,16,22,17],[23,0,23,2],[23,3,23,6],[23,7,23,8],[23,9,23,19],[24,0,24,19],[21,17,21,19],[15,1,15,19],[16,1,16,19],[17,1,17,19],[18,1,18,19],[19,1,19,19],[20,0,20,19],[21,0,21,2],[21,3,21,6],[21,7,21,9],[21,10,21,14],[21,15,21,16],[14,1,14,19],[0,0,0,19],[1,0,1,19],[11,0,11,18],[12,0,12,19],[13,0,13,19]]}
["ATTACHMENT 4\nBID SCHEDULE"]
["YEAR 4"]
["Item","Site","Location","Container Size","Qty","Scheduled Pick Up Frequency","Monthly Rental                                        Cost per Container and Security Bar (Note B)                                ","Nunber of Months Container Rented Per Year ","Total Yearly Rental Cost (Sum of Column G x H)","Price Per Pick Up                           per Container (Note A)","Estimated Number of Pick Ups Per Year","Total Yearly Cost for Pick Ups (Sum of Columns J x K)","Approximate Date In (Note C)","Container Delivery Fee (Note D)","Approximate Date Out (Note C)","Container Removal Fee (Note E)","Price Per Extra Pick Up\n(Cost Per Pick Up) (Note F)","Approximate Extra Pick Up Dates","Total Cost for 2 Extra Pick Ups per year (Sum Column Q x 2)","Total Cost per Year (Sum of Columns I +  L +  N +  P + S)"]
["1.","Kesugi Ken Ranger Station","Mile 135.4 Parks Highway, Trapper Creek","3 YD With Security Bar",1,"October 1 - March 31: 1 x Monthly    \nApril 1 - May 20:    1 x Weekly \nMay 21 - September 5: 2 x Weekly \nSeptember 6 - September 30: 1 x Weekly  ","State Owned Dumpster",12,"N/A for this line",0,"48",{"$f":"SUM(J4*K4)","v":0},"Year Round","Container on Site","Year Round","Container on Site",0,"Memorial Day \nJuly 4th ",{"$f":"SUM(Q4*2)","v":0},{"$f":"SUM(L4,S4)","v":0}]
["2.","Kesugi Ken Large Parking Pad","Mile 135.4 Parks Highway, Trapper Creek","3 YD With Security Bar",1,"May 21 - September 5:  2 x Weekly\nSeptember 6 - September 30:  1 x Weekly",0,"5",{"$f":"SUM(G5*H5)","v":0},0,"35",0,"2024-05-21",0,"2024-09-30",0,0,"Memorial Day \nJuly 4th ",{"$f":"SUM(Q5*2)","v":0},{"$f":"SUM(I5+L5+N5+P5+S5)","v":0}]
["3.","Kesugi Ken Tent Pad","Mile 135.4 Parks Highway, Trapper Creek","3 YD With Security Bar",1,"May 21 - September 5:  2 x Weekly\nSeptember 6 - September 30:  1 x Weekly",0,"5",{"$f":"SUM(G6*H6)","v":0},0,"35",0,"2024-05-21",0,"2024-09-30",0,0,"Memorial Day \nJuly 4th ",{"$f":"SUM(Q6*2)","v":0},{"$f":"SUM(I6+L6+N6+P6+S6)","v":0}]
["4.","Byers Lake Campground, Day Lot","Mile 147 Parks Highway, Trapper Creek","3 YD With Security Bar",1,"May 21 - September 5:  2 x Weekly\nSeptember 6 - September 30:  1 x Weekly",0,"5",{"$f":"SUM(G7*H7)","v":0},0,"35",0,"2024-05-21",0,"2024-09-30",0,0,"Memorial Day \nJuly 4th ",{"$f":"SUM(Q7*2)","v":0},0]
["5.","Byers Lake Campground, Fee Station","Mile 147 Parks Highway, Trapper Creek","3 YD With Security Bar",1,"May 21 - September 5:  2 x Weekly ",0,"5",{"$f":"SUM(G8*H8)","v":0},0,"32",0,"2024-05-21",0,"2024-09-05",0,0,"Memorial Day \nJuly 4th ",{"$f":"SUM(Q8*2)","v":0},0]
["6.","Byers Lake Campground, Host Site","Mile 147 Parks Highway, Trapper Creek","3 YD With Security Bar",1,"May 21 - September 5:  2 x Weekly\nSeptember 6 - September 30:  1 x Weekly",0,"5",0,0,"35",0,"2024-05-21",0,"2024-09-30",0,0,"Memorial Day \nJuly 4th ",{"$f":"SUM(Q9*2)","v":0},0]
["7.","Alaska Veterans Memorial","Mile 147.1 Parks Highway, Trapper Creek","3 YD With Security Bar",1,"May 21 - September 5:  2 x Weekly ",0,"5",0,0,"32",0,"2024-05-21",0,"2024-09-05",0,0,"Memorial Day \nJuly 4th ",0,0]
["8.","Denali View South Viewpoint (possible new dumpster, yet to be determined.)","Mile 134.8 Parks Highway, Trapper Creek","3 YD With Security Bar",1,"May 21 - September 5:  2 x Weekly ",0,"5",0,0,"32",0,"2024-05-21",0,"2024-09-05",0,0,"Memorial Day \nJuly 4th ",0,0]
["TOTAL COST PER YEAR",null,null,null,null,null,null,null,null,null,null,null,null,null,null,null,null,null,null,{"$f":"SUM(T4:T11)","v":0}]
["Prices do not reflect the Fuel Surcharge, Disposal Surcharge and RCC Fee.  Each Fee to be billed as separate line items on invoice.         "]
["DETAILS FOR BID SCHEDULE "]
["A.","The \"Price Per Pick Up per Container\" column is the cost per pick up of that container. "]
["B.","The \"Monthly Rental Cost Per Container and Security Bar\" column is the cost per per month for the rental of the container and security bar. "]
["C.","The \"Approximate Date In\" and Approximated Date Out\" colums ar the approximate dates containters are to be delivered to and removed from the location shown. These dates may vary from year to year. Mat-Su Parks will notify the Contractor of the delivery in and out dates for subsequent contract years."]
["D.","The \"Containter Delivery Fee\" column is the cost for one time delivery of a container to the site for Year Round service for Seasonal service. Bidder is to enter the cost per service per containter in this column. So for Year Round service, the State would pay only one fee, for Seasonal delivery  the State would pay the fee offered when the container is delivered at the beginning of the season."]
["E.","The \"Containter Removal Fee\" column is the cost for one time removal of a container from the site for Year Round service for Seasonal service. Bidder is to enter the cost per service per containter in this column. So for Year Round service, the State would pay only one fee, for Seasonal removal the State would pay the fee offered when the container is removed at the end of the season."]
["F.","The \"Price Per Extra Pick Up\" column is the cost per service to provide an additional pick up on the date(s) shown in the \"Approximate Extra Pick Up Dates\" column. The \"Approximate Extra  Pick Up Dates\" may vary from year to year. The Contractor will be notified by Mat-Su Parks when a special service is required."]
["BIDDER INFORMATION"]
["Authorized Person's Printed Name:",null,null,{"$f":"IF('Year 1'!$D$22=\"\",\"\",'Year 1'!$D$22)","v":""},null,null,null,"Authorized Person's Signature:\nWill Fill Automatically from Authorized Person's Name",null,null,{"$f":"IF(D22=\"\",\"\",D22)","v":""},null,null,null,null,"Date Signed:",null,{"$f":"IF('Year 1'!$R$22=\"\",\"\",'Year 1'!$R$22)","v":""}]
["Preference Certification:",null,null,"Check the preference(s) your company qualifies for:",null,null,null,"Alaska Bidder:",null,{"$f":"IF('Year 1'!$J$23=\"\",\"\",'Year 1'!$J$23)","v":""},"Alaska Veteran:",null,{"$f":"IF('Year 1'!$M$23=\"\",\"\",'Year 1'!$M$23)","v":""},"Alaskan with Disabilities:",null,{"$f":"IF('Year 1'!$P$23=\"\",\"\",'Year 1'!$P$23)","v":""},"Employment Program:",null,{"$f":"IF('Year 1'!$S$23=\"\",\"\",'Year 1'!$S$23)","v":""}]
["Addendum Certification:",null,null,"I acknowledge receipt of the following addendum(s) issued for this ITB:",null,null,null,{"$f":"IF('Year 1'!$H$24=\"\",\"\",'Year 1'!$H$24)","v":""}]

{"sheet":"Year 5","index":4,"n_rows":24,"n_cols":20,"rows_kept":24,"cut":false,"hidden":false,"merged":[[25,0,25,19],[22,0,22,2],[22,3,22,6],[22,7,22,8],[22,10,22,11],[22,13,22,14],[22,16,22,17],[23,0,23,2],[23,3,23,6],[23,7,23,8],[23,9,23,19],[24,0,24,19],[21,17,21,19],[15,1,15,19],[16,1,16,19],[17,1,17,19],[18,1,18,19],[19,1,19,19],[20,0,20,19],[21,0,21,2],[21,3,21,6],[21,7,21,9],[21,10,21,14],[21,15,21,16],[14,1,14,19],[0,0,0,19],[1,0,1,19],[11,0,11,18],[12,0,12,19],[13,0,13,19]]}
["ATTACHMENT 4\nBID SCHEDULE"]
["YEAR 5"]
["Item","Site","Location","Container Size","Qty","Scheduled Pick Up Frequency","Monthly Rental                                        Cost per Container and Security Bar (Note B)                                ","Nunber of Months Container Rented Per Year ","Total Yearly Rental Cost (Sum of Column G x H)","Price Per Pick Up                           per Container (Note A)","Estimated Number of Pick Ups Per Year","Total Yearly Cost for Pick Ups (Sum of Columns J x K)","Approximate Date In (Note C)","Container Delivery Fee (Note D)","Approximate Date Out (Note C)","Container Removal Fee (Note E)","Price Per Extra Pick Up\n(Cost Per Pick Up) (Note F)","Approximate Extra Pick Up Dates","Total Cost for 2 Extra Pick Ups per year (Sum Column Q x 2)","Total Cost per Year (Sum of Columns I +  L +  N +  P + S)"]
["1.","Kesugi Ken Ranger Station","Mile 135.4 Parks Highway, Trapper Creek","3 YD With Security Bar",1,"October 1 - March 31: 1 x Monthly    \nApril 1 - May 20:    1 x Weekly \nMay 21 - September 5: 2 x Weekly \nSeptember 6 - September 30: 1 x Weekly  ","State Owned Dumpster",12,"N/A for this line",0,"48",{"$f":"SUM(J4*K4)","v":0},"Year Round","Container on Site","Year Round","Container on Site",0,"Memorial Day \nJuly 4th ",{"$f":"SUM(Q4*2)","v":0},{"$f":"SUM(L4,S4)","v":0}]
["2.","Kesugi Ken Large Parking Pad","Mile 135.4 Parks Highway, Trapper Creek","3 YD With Security Bar",1,"May 21 - September 5:  2 x Weekly\nSeptember 6 - September 30:  1 x Weekly",0,"5",{"$f":"SUM(G5*H5)","v":0},0,"35",0,"2024-05-21",0,"2024-09-30",0,0,"Memorial Day \nJuly 4th ",{"$f":"SUM(Q5*2)","v":0},{"$f":"SUM(I5+L5+N5+P5+S5)","v":0}]
["3.","Kesugi Ken Tent Pad","Mile 135.4 Parks Highway, Trapper Creek","3 YD With Security Bar",1,"May 21 - September 5:  2 x Weekly\nSeptember 6 - September 30:  1 x Weekly",0,"5",{"$f":"SUM(G6*H6)","v":0},0,"35",0,"2024-05-21",0,"2024-09-30",0,0,"Memorial Day \nJuly 4th ",{"$f":"SUM(Q6*2)","v":0},{"$f":"SUM(I6+L6+N6+P6+S6)","v":0}]
["4.","Byers Lake Campground, Day Lot","Mile 147 Parks Highway, Trapper Creek","3 YD With Security Bar",1,"May 21 - September 5:  2 x Weekly\nSeptember 6 - September 30:  1 x Weekly",0,"5",{"$f":"SUM(G7*H7)","v":0},0,"35",0,"2024-05-21",0,"2024-09-30",0,0,"Memorial Day \nJuly 4th ",{"$f":"SUM(Q7*2)","v":0},0]
["5.","Byers Lake Campground, Fee Station","Mile 147 Parks Highway, Trapper Creek","3 YD With Security Bar",1,"May 21 - September 5:  2 x Weekly ",0,"5",{"$f":"SUM(G8*H8)","v":0},0,"32",0,"2024-05-21",0,"2024-09-05",0,0,"Memorial Day \nJuly 4th ",{"$f":"SUM(Q8*2)","v":0},0]
["6.","Byers Lake Campground, Host Site","Mile 147 Parks Highway, Trapper Creek","3 YD With Security Bar",1,"May 21 - September 5:  2 x Weekly\nSeptember 6 - September 30:  1 x Weekly",0,"5",0,0,"35",0,"2024-05-21",0,"2024-09-30",0,0,"Memorial Day \nJuly 4th ",{"$f":"SUM(Q9*2)","v":0},0]
["7.","Alaska Veterans Memorial","Mile 147.1 Parks Highway, Trapper Creek","3 YD With Security Bar",1,"May 21 - September 5:  2 x Weekly ",0,"5",0,0,"32",0,"2024-05-21",0,"2024-09-05",0,0,"Memorial Day \nJuly 4th ",0,0]
["8.","Denali View South Viewpoint (possible new dumpster, yet to be determined.)","Mile 134.8 Parks Highway, Trapper Creek","3 YD With Security Bar",1,"May 21 - September 5:  2 x Weekly ",0,"5",0,0,"32",0,"2024-05-21",0,"2024-09-05",0,0,"Memorial Day \nJuly 4th ",0,0]
["TOTAL COST PER YEAR",null,null,null,null,null,null,null,null,null,null,null,null,null,null,null,null,null,null,{"$f":"SUM(T4:T11)","v":0}]
["Prices do not reflect the Fuel Surcharge, Disposal Surcharge and RCC Fee.  Each Fee to be billed as separate line items on invoice.         "]
["DETAILS FOR BID SCHEDULE "]
["A.","The \"Price Per Pick Up per Container\" column is the cost per pick up of that container. "]
["B.","The \"Monthly Rental Cost Per Container and Security Bar\" column is the cost per per month for the rental of the container and security bar. "]
["C.","The \"Approximate Date In\" and Approximated Date Out\" colums ar the approximate dates containters are to be delivered to and removed from the location shown. These dates may vary from year to year. Mat-Su Parks will notify the Contractor of the delivery in and out dates for subsequent contract years."]
["D.","The \"Containter Delivery Fee\" column is the cost for one time delivery of a container to the site for Year Round service for Seasonal service. Bidder is to enter the cost per service per containter in this column. So for Year Round service, the State would pay only one fee, for Seasonal delivery  the State would pay the fee offered when the container is delivered at the beginning of the season."]
["E.","The \"Containter Removal Fee\" column is the cost for one time removal of a container from the site for Year Round service for Seasonal service. Bidder is to enter the cost per service per containter in this column. So for Year Round service, the State would pay only one fee, for Seasonal removal the State would pay the fee offered when the container is removed at the end of the season."]
["F.","The \"Price Per Extra Pick Up\" column is the cost per service to provide an additional pick up on the date(s) shown in the \"Approximate Extra Pick Up Dates\" column. The \"Approximate Extra  Pick Up Dates\" may vary from year to year. The Contractor will be notified by Mat-Su Parks when a special service is required."]
["BIDDER INFORMATION"]
["Authorized Person's Printed Name:",null,null,{"$f":"IF('Year 1'!$D$22=\"\",\"\",'Year 1'!$D$22)","v":""},null,null,null,"Authorized Person's Signature:\nWill Fill Automatically from Authorized Person's Name",null,null,{"$f":"IF(D22=\"\",\"\",D22)","v":""},null,null,null,null,"Date Signed:",null,{"$f":"IF('Year 1'!$R$22=\"\",\"\",'Year 1'!$R$22)","v":""}]
["Preference Certification:",null,null,"Check the preference(s) your company qualifies for:",null,null,null,"Alaska Bidder:",null,{"$f":"IF('Year 1'!$J$23=\"\",\"\",'Year 1'!$J$23)","v":""},"Alaska Veteran:",null,{"$f":"IF('Year 1'!$M$23=\"\",\"\",'Year 1'!$M$23)","v":""},"Alaskan with Disabilities:",null,{"$f":"IF('Year 1'!$P$23=\"\",\"\",'Year 1'!$P$23)","v":""},"Employment Program:",null,{"$f":"IF('Year 1'!$S$23=\"\",\"\",'Year 1'!$S$23)","v":""}]
["Addendum Certification:",null,null,"I acknowledge receipt of the following addendum(s) issued for this ITB:",null,null,null,{"$f":"IF('Year 1'!$H$24=\"\",\"\",'Year 1'!$H$24)","v":""}]

{"sheet":"5 Year Total","index":5,"n_rows":14,"n_cols":20,"rows_kept":14,"cut":false,"hidden":false,"merged":[[5,1,5,18],[0,0,0,19],[1,0,1,19],[2,1,2,19],[3,1,3,18],[4,1,4,18],[6,1,6,18],[7,1,7,18],[8,0,8,18],[9,0,9,19],[10,0,10,19],[15,0,15,19],[11,17,11,19],[12,0,12,2],[12,3,12,6],[12,7,12,8],[12,10,12,11],[12,13,12,14],[12,16,12,17],[11,0,11,2],[11,3,11,6],[11,7,11,9],[11,10,11,14],[11,15,11,16],[13,0,13,2],[13,3,13,6],[13,7,13,8],[13,9,13,19],[14,0,14,19]]}
["ATTACHMENT 4\nBID SCHEDULE"]
["5 YEAR TOTAL"]
["Item","Total Cost per Years 1, 2, 3, 4, and 5 (Sum of Year 1 + Year 2 +  Year 3 +  Year 4 + Year 5)"]
["1.","Year 1 Total",null,null,null,null,null,null,null,null,null,null,null,null,null,null,null,null,null,{"$f":"'Year 1'!T12","v":0}]
["2.","Year 2 Total",null,null,null,null,null,null,null,null,null,null,null,null,null,null,null,null,null,{"$f":"'Year 2'!T12","v":0}]
["3.","Year 3 Total",null,null,null,null,null,null,null,null,null,null,null,null,null,null,null,null,null,{"$f":"'Year 3'!T12","v":0}]
["4.","Year 4 Total",null,null,null,null,null,null,null,null,null,null,null,null,null,null,null,null,null,{"$f":"'Year 4'!T12","v":0}]
["5.","Year 5Total",null,null,null,null,null,null,null,null,null,null,null,null,null,null,null,null,null,{"$f":"'Year 5'!T12","v":0}]
["TOTAL COST FOR ALL YEARS",null,null,null,null,null,null,null,null,null,null,null,null,null,null,null,null,null,null,{"$f":"SUM(T4:T8)","v":0}]
["Prices do not reflect the Fuel Surcharge, Disposal Surcharge and RCC Fee.  Each Fee to be billed as separate line items on invoice.         "]
["BIDDER INFORMATION"]
["Authorized Person's Printed Name:",null,null,{"$f":"IF('Year 1'!$D$22=\"\",\"\",'Year 1'!$D$22)","v":""},null,null,null,"Authorized Person's Signature:\nWill Fill Automatically from Authorized Person's Name",null,null,{"$f":"IF(D12=\"\",\"\",D12)","v":""},null,null,null,null,"Date Signed:",null,{"$f":"IF('Year 1'!$R$22=\"\",\"\",'Year 1'!$R$22)","v":""}]
["Preference Certification:",null,null,"Check the preference(s) your company qualifies for:",null,null,null,"Alaska Bidder:",null,{"$f":"IF('Year 1'!$J$23=\"\",\"\",'Year 1'!$J$23)","v":""},"Alaska Veteran:",null,{"$f":"IF('Year 1'!$M$23=\"\",\"\",'Year 1'!$M$23)","v":""},"Alaskan with Disabilities:",null,{"$f":"IF('Year 1'!$P$23=\"\",\"\",'Year 1'!$P$23)","v":""},"Employment Program:",null,{"$f":"IF('Year 1'!$S$23=\"\",\"\",'Year 1'!$S$23)","v":""}]
["Addendum Certification:",null,null,"I acknowledge receipt of the following addendum(s) issued for this ITB:",null,null,null,{"$f":"IF('Year 1'!$H$24=\"\",\"\",'Year 1'!$H$24)","v":""}]